fUST/lending_fUST_20250428
["ID","MTS","AMOUNT","RATE_DAILY","PERIOD"]
[359232509,1745854252258,-400.0,0.00022191,2]
[359232510,1745854252268,-400.0,0.00022191,2]
[359232511,1745854252277,-400.0,0.00022191,2]
[359232512,1745854252287,-154.827599,0.00022191,7]
[359232513,1745854252296,-154.827599,0.00022191,7]
[359232514,1745854252305,-400.0,0.00022191,2]
[359232515,1745854252319,-154.827599,0.00022191,7]
[359232516,1745854252328,-206.77965223,0.00022191,2]
[359232517,1745854252338,-154.827599,0.00022191,7]
[359232518,1745854252347,-400.0,0.00022191,2]
[359232519,1745854252357,-945.48,0.00022191,2]
[359232520,1745854252367,-400.0,0.00022191,2]
[359232521,1745854252377,-400.0,0.00022191,2]
[359232522,1745854252388,-154.827599,0.00022191,7]
[359232523,1745854252398,-400.0,0.00022191,2]
[359232524,1745854252408,-154.827599,0.00022191,7]
[359232525,1745854252418,-400.0,0.00022191,2]
[359232526,1745854252428,-154.827599,0.00022191,7]
[359232527,1745854252436,-154.827604,0.00022191,7]
[359232528,1745854252446,-400.0,0.00022191,2]
[359232529,1745854252455,-400.0,0.00022191,2]
[359232530,1745854252466,-400.0,0.00022191,2]
[359232531,1745854252476,-400.0,0.00022191,2]
[359232532,1745854252486,-400.0,0.00022191,2]
[359232533,1745854252496,-400.0,0.00022191,2]
[359232534,1745854252505,-400.0,0.00022191,2]
[359232535,1745854252514,-400.0,0.00022191,2]
[359232536,1745854252524,-400.0,0.00022191,2]
[359232537,1745854252534,-632.59,0.00022191,2]
[359232538,1745854252543,-400.0,0.00022191,2]
[359232539,1745854252553,-400.0,0.00022191,2]
[359232540,1745854252563,-400.0,0.00022191,2]
[359232541,1745854252572,-400.0,0.00022191,2]
[359232542,1745854252582,-400.0,0.00022191,2]
[359232543,1745854252591,-275.4146125,0.00022191,2]
[359232544,1745854252600,-400.0,0.00022191,2]
[359232545,1745854252610,-400.0,0.00022191,2]
[359232546,1745854252619,-400.0,0.00022191,2]
[359232547,1745854252638,-7309.86,0.00022191,2]
[359232548,1745854252656,-337.07094502,0.00022191,2]
[359232549,1745854252676,-400.0,0.00022191,2]
[359232550,1745854252695,-400.0,0.00022191,2]
[359232551,1745854252717,-717.62,0.00022191,2]
[359232552,1745854252733,-400.0,0.00022191,2]
[359232553,1745854252754,-400.0,0.00022191,2]
[359232554,1745854252768,-400.0,0.00022191,2]
[359232555,1745854252784,-400.0,0.00022191,2]
[359232556,1745854252803,-2494.29,0.00022191,2]
[359232557,1745854252822,-5087.19,0.00022191,2]
[359232558,1745854252835,-400.0,0.00022191,2]
[359232559,1745854252855,-400.0,0.00022191,2]
[359232560,1745854252868,-400.0,0.00022191,2]
[359232561,1745854252884,-400.0,0.00022191,2]
[359232562,1745854252897,-400.0,0.00022191,2]
[359232563,1745854252912,-400.0,0.00022191,2]
[359232564,1745854252927,-400.0,0.00022191,2]
[359232565,1745854252941,-3113.85,0.00022191,2]
[359232566,1745854252956,-790.41,0.00022191,2]
[359232567,1745854252972,-400.0,0.00022191,2]
[359232568,1745854252987,-400.0,0.00022191,2]
[359232569,1745854253001,-400.0,0.00022191,2]
[359232570,1745854253016,-400.0,0.00022191,2]
[359232571,1745854253033,-400.0,0.00022191,2]
[359232572,1745854253048,-1703.91,0.00022191,2]
[359232573,1745854253063,-500.0,0.00022191,2]
[359232574,1745854253078,-3274.68,0.00022191,2]
[359232575,1745854253092,-400.0,0.00022191,2]
[359232576,1745854253107,-400.0,0.00022191,2]
[359232577,1745854253122,-548.48399133,0.00022191,2]
[359232578,1745854253136,-429.67,0.00022191,2]
[359232579,1745854253150,-400.0,0.00022191,2]
[359232580,1745854253165,-400.0,0.00022191,2]
[359232581,1745854253180,-400.0,0.00022191,2]
[359232582,1745854253195,-400.0,0.00022191,2]
[359232583,1745854253208,-400.0,0.00022191,2]
[359232584,1745854253225,-400.0,0.00022191,2]
[359232585,1745854253240,-400.0,0.00022191,2]
[359232586,1745854253254,-400.0,0.00022191,2]
[359232587,1745854253268,-2521.1,0.00022191,2]
[359232588,1745854253282,-400.0,0.00022191,2]
[359232589,1745854253296,-400.0,0.00022191,2]
[359232590,1745854253313,-426.81,0.00022191,2]
[359232591,1745854253327,-400.0,0.00022191,2]
[359232592,1745854253341,-400.0,0.00022191,2]
[359232593,1745854253355,-400.0,0.00022191,2]
[359232594,1745854253370,-400.0,0.00022191,2]
[359232595,1745854253385,-400.0,0.00022191,2]
[359232596,1745854253401,-400.0,0.00022191,2]
[359232597,1745854253415,-400.0,0.00022191,2]
[359232598,1745854253429,-400.0,0.00022191,2]
[359232599,1745854253443,-400.0,0.00022191,2]
[359232600,1745854253459,-1387.76,0.00022191,2]
[359232601,1745854253476,-400.0,0.00022191,2]
[359232602,1745854253490,-400.0,0.00022191,2]
[359232603,1745854253505,-2824.54,0.00022191,2]
[359232604,1745854253517,-400.0,0.00022191,2]
[359232605,1745854253526,-400.0,0.00022191,2]
[359232606,1745854253536,-400.0,0.00022191,2]
[359232607,1745854253545,-400.0,0.00022191,2]
[359232608,1745854253555,-400.0,0.00022191,2]
[359232609,1745854253565,-400.0,0.00022191,2]
[359232610,1745854253575,-400.0,0.00022191,2]
[359232611,1745854253585,-400.0,0.00022191,2]
[359232612,1745854253594,-200.0,0.00022191,2]
[359232613,1745854253604,-2527.73,0.00022191,2]
[359232614,1745854253613,-683.24,0.00022191,2]
[359232615,1745854253623,-454.16,0.00022191,2]
[359232616,1745854253633,-400.0,0.00022191,2]
[359232617,1745854253643,-400.0,0.00022191,2]
[359232618,1745854253898,-400.0,0.00022191,2]
[359232619,1745854253913,-400.0,0.00022191,2]
[359232620,1745854253923,-569.43,0.00022191,2]
[359232621,1745854253933,-400.0,0.00022191,2]
[359232622,1745854253942,-205.47635476,0.00022191,2]
[359232623,1745854253951,-400.0,0.00022191,2]
[359232624,1745854253961,-400.0,0.00022191,2]
[359232625,1745854253971,-400.0,0.00022191,2]
[359232626,1745854253979,-400.0,0.00022191,2]
[359232627,1745854253988,-400.0,0.00022191,2]
[359232628,1745854253997,-406.79,0.00022191,2]
[359232629,1745854254006,-400.0,0.00022191,2]
[359232630,1745854254015,-400.0,0.00022191,2]
[359232631,1745854254024,-500.0,0.00022191,2]
[359232632,1745854254033,-400.0,0.00022191,2]
[359232633,1745854254042,-400.0,0.00022191,2]
[359232634,1745854254051,-400.0,0.00022191,2]
[359232635,1745854254060,-400.0,0.00022191,2]
[359232636,1745854254069,-1851.22,0.00022191,2]
[359232637,1745854254079,-2647.48,0.00022191,2]
[359232638,1745854254088,-1350.02,0.00022191,2]
[359232639,1745854254097,-496.31,0.00022191,2]
[359232640,1745854254106,-400.0,0.00022191,2]
[359232641,1745854254115,-400.0,0.00022191,2]
[359232642,1745854254125,-400.0,0.00022191,2]
[359232643,1745854254134,-400.0,0.00022191,2]
[359232644,1745854254143,-5060.6,0.00022191,2]
[359232645,1745854254152,-400.0,0.00022191,2]
[359232646,1745854254162,-400.0,0.00022191,2]
[359232647,1745854254171,-624.97,0.00022191,2]
[359232648,1745854254179,-400.0,0.00022191,2]
[359232649,1745854254188,-400.0,0.00022191,2]
[359232650,1745854254197,-291.777561,0.00022191,2]
[359232651,1745854254206,-291.777561,0.00022191,2]
[359232652,1745854254217,-291.777561,0.00022191,2]
[359232653,1745854254226,-291.777561,0.00022191,2]
[359232654,1745854254235,-400.0,0.00022191,2]
[359232655,1745854254245,-202.26393237,0.00022191,2]
[359232656,1745854254254,-1632.73,0.00022191,2]
[359232657,1745854254263,-400.0,0.00022191,2]
[359232658,1745854254272,-400.0,0.00022191,2]
[359232659,1745854254282,-593.79,0.00022191,2]
[359232660,1745854254291,-291.777561,0.00022191,2]
[359232661,1745854254300,-291.777561,0.00022191,2]
[359232662,1745854254311,-400.0,0.00022191,2]
[359232663,1745854254321,-291.777561,0.00022191,2]
[359232664,1745854254331,-400.0,0.00022191,2]
[359232665,1745854254340,-291.777563,0.00022191,2]
[359232666,1745854254350,-400.0,0.00022191,2]
[359232667,1745854254360,-400.0,0.00022191,2]
[359232668,1745854254369,-400.0,0.00022191,2]
[359232669,1745854254379,-400.0,0.00022191,2]
[359232670,1745854254388,-1228.61,0.00022191,2]
[359232671,1745854254399,-400.0,0.00022191,2]
[359232672,1745854254408,-400.0,0.00022191,2]
[359232673,1745854254418,-400.0,0.00022191,2]
[359232674,1745854254427,-400.0,0.00022191,2]
[359232675,1745854254436,-400.0,0.00022191,2]
[359232676,1745854254445,-400.0,0.00022191,2]
[359232677,1745854254455,-400.0,0.00022191,2]
[359232678,1745854254466,-203.40476333,0.00022191,2]
[359232679,1745854254475,-400.0,0.00022191,2]
[359232680,1745854254485,-400.0,0.00022191,2]
[359232681,1745854254495,-400.0,0.00022191,2]
[359232682,1745854254504,-400.0,0.00022191,2]
[359232683,1745854254513,-400.0,0.00022191,2]
[359232684,1745854254522,-3602.46,0.00022191,2]
[359232685,1745854254531,-814.21,0.00022191,2]
[359232686,1745854254541,-400.0,0.00022191,2]
[359232687,1745854254550,-421.53,0.00022191,2]
[359232688,1745854254559,-400.0,0.00022191,2]
[359232689,1745854254568,-400.0,0.00022191,2]
[359232690,1745854254578,-400.0,0.00022191,2]
[359232691,1745854254587,-3891.84,0.00022191,2]
[359232692,1745854254596,-400.0,0.00022191,2]
[359232693,1745854254605,-400.0,0.00022191,2]
[359232694,1745854254614,-400.0,0.00022191,2]
[359232695,1745854254623,-203.09814251,0.00022191,2]
[359232696,1745854254632,-400.0,0.00022191,2]
[359232697,1745854254642,-400.0,0.00022191,2]
[359232698,1745854254651,-400.0,0.00022191,2]
[359232699,1745854254660,-608.06,0.00022191,2]
[359232700,1745854254670,-1983.73,0.00022191,2]
[359232701,1745854254679,-400.0,0.00022191,2]
[359232702,1745854254689,-2678.18,0.00022191,2]
[359232703,1745854254698,-400.0,0.00022191,2]
[359232704,1745854254707,-535.19,0.00022191,2]
[359232705,1745854254717,-2696.99,0.00022191,2]
[359232706,1745854254726,-400.0,0.00022191,2]
[359232707,1745854254735,-400.0,0.00022191,2]
[359232708,1745854254745,-575.67,0.00022191,2]
[359232709,1745854254754,-1353.5,0.00022191,2]
[359232710,1745854254763,-605.61,0.00022191,2]
[359232711,1745854254773,-400.0,0.00022191,2]
[359232712,1745854254782,-400.0,0.00022191,2]
[359232713,1745854254794,-400.0,0.00022191,2]
[359232714,1745854254803,-400.0,0.00022191,2]
[359232715,1745854254812,-2630.71,0.00022191,2]
[359232716,1745854254822,-2670.14,0.00022191,2]
[359232717,1745854254831,-201.19339595,0.00022191,2]
[359232718,1745854254840,-884.46,0.00022191,2]
[359232719,1745854254849,-400.0,0.00022191,2]
[359232720,1745854254858,-400.0,0.00022191,2]
[359232721,1745854254867,-400.0,0.00022191,2]
[359232722,1745854254876,-400.0,0.00022191,2]
[359232723,1745854254886,-2266.38,0.00022191,2]
[359232724,1745854254895,-400.0,0.00022191,2]
[359232725,1745854254904,-400.0,0.00022191,2]
[359232726,1745854254913,-400.0,0.00022191,2]
[359232727,1745854254923,-400.0,0.00022191,2]
[359232728,1745854254932,-3076.98,0.00022191,2]
[359232729,1745854254940,-462.5,0.00022191,2]
[359232730,1745854254950,-400.0,0.00022191,2]
[359232731,1745854254959,-400.0,0.00022191,2]
[359232732,1745854254969,-200.0,0.00022191,2]
[359232733,1745854254979,-2367.77,0.00022191,2]
[359232734,1745854254988,-814.58,0.00022191,2]
[359232735,1745854254998,-400.0,0.00022191,2]
[359232736,1745854255008,-400.0,0.00022191,2]
[359232737,1745854255017,-400.0,0.00022191,2]
[359232738,1745854255027,-400.0,0.00022191,2]
[359232739,1745854255037,-490.2,0.00022191,2]
[359232740,1745854255046,-400.0,0.00022191,2]
[359232741,1745854255056,-400.0,0.00022191,2]
[359232742,1745854255065,-400.0,0.00022191,2]
[359232743,1745854255075,-4290.17,0.00022191,2]
[359232744,1745854255084,-400.0,0.00022191,2]
[359232745,1745854255094,-400.0,0.00022191,2]
[359232746,1745854255103,-200.0,0.00022191,2]
[359232747,1745854255112,-307.34221166,0.00022191,2]
[359232748,1745854255121,-578.43,0.00022191,2]
[359232749,1745854255130,-400.0,0.00022191,2]
[359232750,1745854255139,-2624.56,0.00022191,2]
[359232751,1745854255148,-400.0,0.00022191,2]
[359232752,1745854255157,-315.58592454,0.00022191,2]
[359232753,1745854255166,-400.0,0.00022191,2]
[359232754,1745854255175,-400.0,0.00022191,2]
[359232755,1745854255184,-400.0,0.00022191,2]
[359232756,1745854255193,-252.0069328,0.00022191,2]
[359232757,1745854255203,-156.94664998,0.00022191,2]
[359232758,1745854255212,-400.0,0.00022191,2]
[359232759,1745854255221,-400.0,0.00022191,2]
[359232760,1745854255230,-400.0,0.00022191,2]
[359232761,1745854255239,-400.0,0.00022191,2]
[359232762,1745854255248,-555.38,0.00022191,2]
[359232763,1745854255257,-390.16875653,0.00022191,2]
[359232764,1745854255267,-1005.88,0.00022464,2]
[359232765,1745854255276,-160.0,0.00022464,2]
[359232766,1745854255285,-575.67,0.00022464,2]
[359232767,1745854255294,-5746.96,0.00022464,2]
[359232768,1745854255304,-400.0,0.00022465,2]
[359232769,1745854255316,-202.73462613,0.00022465,2]
[359232770,1745854255325,-400.0,0.00022465,2]
[359232771,1745854255334,-205.91721999,0.00022465,2]
[359232772,1745854255343,-200.0,0.00022465,2]
[359232773,1745854255354,-200.0,0.00022465,2]
[359232774,1745854255363,-400.0,0.00022465,2]
[359232775,1745854255372,-400.0,0.00022465,2]
[359232776,1745854255381,-400.0,0.00022465,2]
[359232777,1745854255393,-400.0,0.00022465,2]
[359232778,1745854255403,-400.0,0.00022465,2]
[359232779,1745854255412,-273.27086659,0.00022465,2]
[359232780,1745854255422,-400.0,0.00022465,2]
[359232781,1745854255431,-229.7548822,0.00022465,2]
[359232782,1745854255441,-400.0,0.00022465,2]
[359232783,1745854255450,-400.0,0.00022465,2]
[359232784,1745854255460,-446.98,0.00022465,2]
[359232785,1745854255470,-400.0,0.00022465,2]
[359232786,1745854255480,-420.9,0.00022465,2]
[359232787,1745854255490,-400.0,0.00022465,2]
[359232788,1745854255500,-455.03,0.00022465,2]
[359232789,1745854255509,-400.0,0.00022465,2]
[359232790,1745854255518,-400.0,0.00022465,2]
[359232791,1745854255528,-400.0,0.00022465,2]
[359232792,1745854255537,-642.33,0.00022465,2]
[359232793,1745854255547,-427.15,0.00022465,2]
[359232794,1745854255556,-400.0,0.00022465,2]
[359232795,1745854255565,-400.0,0.00022465,2]
[359232796,1745854255575,-400.0,0.00022465,2]
[359232797,1745854255584,-212.3466922,0.00022465,2]
[359232798,1745854255593,-454.12990667,0.00022465,2]
[359232799,1745854255603,-400.0,0.00022465,2]
[359232800,1745854255612,-309.08290504,0.00022465,2]
[359232801,1745854255622,-191.04485389,0.00022465,2]
[359232802,1745854255631,-969.45,0.00022465,2]
[359232803,1745854255641,-400.0,0.00022465,2]
[359232804,1745854255650,-189.5693854,0.00022465,2]
[359232805,1745854255660,-400.0,0.00022465,2]
[359232806,1745854255669,-400.0,0.00022465,2]
[359232807,1745854255679,-400.0,0.00022465,2]
[359232808,1745854255688,-528.32,0.00022465,2]
[359232809,1745854255697,-1000.0,0.00022465,2]
[359232810,1745854255707,-400.0,0.00022465,2]
[359232811,1745854255720,-266.74942953,0.00022465,2]
[359232812,1745854255729,-400.0,0.00022465,2]
[359232813,1745854255738,-400.0,0.00022465,2]
[359232814,1745854255747,-322.87482789,0.00022465,2]
[359232815,1745854255756,-1000.0,0.00022465,2]
[359232816,1745854255765,-400.0,0.00022465,2]
[359232817,1745854255774,-400.0,0.00022465,2]
[359232818,1745854255784,-400.0,0.00022465,2]
[359232819,1745854255793,-202.17013478,0.00022465,2]
[359232820,1745854255803,-400.0,0.00022465,2]
[359232821,1745854255812,-400.0,0.00022465,2]
[359232822,1745854255821,-400.0,0.00022465,2]
[359232823,1745854255830,-400.0,0.00022465,2]
[359232824,1745854255840,-400.0,0.00022465,2]
[359232825,1745854255850,-400.0,0.00022465,2]
[359232826,1745854255859,-408.21,0.00022465,2]
[359232827,1745854255868,-416.66,0.00022465,2]
[359232828,1745854255878,-400.0,0.00022465,2]
[359232829,1745854255887,-400.0,0.00022465,2]
[359232830,1745854255897,-400.0,0.00022465,2]
[359232831,1745854255906,-400.0,0.00022465,2]
[359232832,1745854255915,-400.0,0.00022465,2]
[359232833,1745854255924,-400.0,0.00022465,2]
[359232834,1745854255933,-400.0,0.00022465,2]
[359232835,1745854255942,-440.06,0.00022465,2]
[359232836,1745854255952,-311.04712258,0.00022465,2]
[359232837,1745854255961,-400.0,0.00022465,2]
[359232838,1745854255972,-400.0,0.00022465,2]
[359232839,1745854255982,-400.0,0.00022465,2]
[359232840,1745854255991,-306.8616663,0.00022465,2]
[359232841,1745854256000,-400.0,0.00022465,2]
[359232842,1745854256009,-261.11241122,0.00022465,2]
[359232843,1745854256018,-203.16323656,0.00022465,2]
[359232844,1745854256028,-400.0,0.00022465,2]
[359232845,1745854256038,-400.0,0.00022465,2]
[359232846,1745854256048,-402.83,0.00022465,2]
[359232847,1745854256057,-319.39052644,0.00022465,2]
[359232848,1745854256067,-400.0,0.00022465,2]
[359232849,1745854256076,-307.17404748,0.00022465,2]
[359232850,1745854256085,-400.0,0.00022465,2]
[359232851,1745854256094,-490.1166753,0.00022465,2]
[359232852,1745854256103,-400.0,0.00022465,2]
[359232853,1745854256112,-400.0,0.00022465,2]
[359232854,1745854256121,-479.2613473,0.00022465,2]
[359232855,1745854256131,-400.0,0.00022465,2]
[359232856,1745854256140,-400.0,0.00022465,2]
[359232857,1745854256149,-305.80789081,0.00022465,2]
[359232858,1745854256158,-400.0,0.00022465,2]
[359232859,1745854256169,-455.14,0.00022465,2]
[359232860,1745854256179,-400.0,0.00022465,2]
[359232861,1745854256189,-404.78768748,0.00022465,2]
[359232862,1745854256198,-864.1,0.00022465,2]
[359232863,1745854256208,-400.0,0.00022465,2]
[359232864,1745854256218,-400.0,0.00022465,2]
[359232865,1745854256228,-400.0,0.00022465,2]
[359232866,1745854256237,-400.0,0.00022465,2]
[359232867,1745854256247,-400.0,0.00022465,2]
[359232868,1745854256256,-400.0,0.00022465,2]
[359232869,1745854256265,-400.0,0.00022465,2]
[359232870,1745854256275,-400.0,0.00022465,2]
[359232871,1745854256284,-400.0,0.00022465,2]
[359232872,1745854256293,-400.0,0.00022465,2]
[359232873,1745854256302,-400.0,0.00022465,2]
[359232874,1745854256316,-400.0,0.00022465,2]
[359232875,1745854256326,-400.0,0.00022465,2]
[359232876,1745854256335,-400.0,0.00022465,2]
[359232877,1745854256344,-276.07047133,0.00022465,2]
[359232878,1745854256354,-400.0,0.00022465,2]
[359232879,1745854256363,-400.0,0.00022465,2]
[359232880,1745854256372,-400.0,0.00022465,2]
[359232881,1745854256383,-400.0,0.00022465,2]
[359232882,1745854256392,-400.0,0.00022465,2]
[359232883,1745854256401,-984.61,0.00022465,2]
[359232884,1745854256411,-400.0,0.00022465,2]
[359232885,1745854256421,-400.0,0.00022465,2]
[359232886,1745854256430,-400.0,0.00022465,2]
[359232887,1745854256440,-400.0,0.00022465,2]
[359232888,1745854256449,-607.8,0.00022465,2]
[359232889,1745854256458,-400.0,0.00022465,2]
[359232890,1745854256469,-400.0,0.00022465,2]
[359232891,1745854256479,-400.0,0.00022465,2]
[359232892,1745854256488,-400.0,0.00022465,2]
[359232893,1745854256497,-400.0,0.00022465,2]
[359232894,1745854256506,-400.0,0.00022465,2]
[359232895,1745854256519,-400.0,0.00022465,2]
[359232896,1745854256528,-441.01824451,0.00022465,2]
[359232897,1745854256538,-408.33,0.00022465,2]
[359232898,1745854256547,-400.0,0.00022465,2]
[359232899,1745854256557,-400.0,0.00022465,2]
[359232900,1745854256566,-1654.21,0.00022465,2]
[359232901,1745854256575,-188.99251955,0.00022465,2]
[359232902,1745854256584,-400.0,0.00022465,2]
[359232903,1745854256594,-400.0,0.00022465,2]
[359232904,1745854256603,-400.0,0.00022465,2]
[359232905,1745854256612,-400.0,0.00022465,2]
[359232906,1745854256622,-400.0,0.00022465,2]
[359232907,1745854256631,-200.42436518,0.00022465,2]
[359232908,1745854256640,-620.87,0.00022465,2]
[359232909,1745854256650,-400.0,0.00022465,2]
[359232910,1745854256662,-194.14011075,0.00022465,2]
[359232911,1745854256672,-400.0,0.00022465,2]
[359232912,1745854256681,-400.0,0.00022465,2]
[359232913,1745854256691,-481.88,0.00022465,2]
[359232914,1745854256700,-400.0,0.00022465,2]
[359232915,1745854256709,-400.0,0.00022465,2]
[359232916,1745854256719,-400.0,0.00022465,2]
[359232917,1745854256728,-2724.77,0.00022465,2]
[359232918,1745854256737,-218.55190199,0.00022465,2]
[359232919,1745854256746,-400.0,0.00022465,2]
[359232920,1745854256755,-400.0,0.00022465,2]
[359232921,1745854256766,-400.0,0.00022465,2]
[359232922,1745854256775,-454.9,0.00022465,2]
[359232923,1745854256785,-400.0,0.00022465,2]
[359232924,1745854256794,-400.0,0.00022465,2]
[359232925,1745854256803,-204.75146361,0.00022465,2]
[359232926,1745854256813,-400.0,0.00022465,2]
[359232927,1745854256823,-590.23,0.00022465,2]
[359232928,1745854256832,-705.55,0.00022465,2]
[359232929,1745854256978,-400.0,0.00022465,2]
[359232930,1745854256988,-400.0,0.00022465,2]
[359232931,1745854256997,-181.11491967,0.00022465,2]
[359232932,1745854257006,-1309.2,0.00022465,2]
[359232933,1745854257015,-473.03,0.00022465,2]
[359232934,1745854257024,-400.0,0.00022465,2]
[359232935,1745854257033,-410.46904794,0.00022465,2]
[359232936,1745854257043,-400.0,0.00022465,2]
[359232937,1745854257052,-400.0,0.00022465,2]
[359232938,1745854257062,-400.0,0.00022465,2]
[359232939,1745854257072,-300.0,0.00022465,2]
[359232940,1745854257081,-400.0,0.00022465,2]
[359232941,1745854257091,-400.0,0.00022465,2]
[359232942,1745854257100,-400.0,0.00022465,2]
[359232943,1745854257110,-400.0,0.00022465,2]
[359232944,1745854257119,-400.0,0.00022465,2]
[359232945,1745854257129,-400.0,0.00022465,2]
[359232946,1745854257138,-400.0,0.00022465,2]
[359232947,1745854257148,-216.12190053,0.00022465,2]
[359232948,1745854257157,-400.0,0.00022465,2]
[359232949,1745854257166,-849.7,0.00022465,2]
[359232950,1745854257175,-400.0,0.00022465,2]
[359232951,1745854257185,-400.0,0.00022465,2]
[359232952,1745854257194,-408.63,0.00022465,2]
[359232953,1745854257203,-432.02,0.00022465,2]
[359232954,1745854257212,-400.0,0.00022465,2]
[359232955,1745854257225,-400.0,0.00022465,2]
[359232956,1745854257235,-400.0,0.00022465,2]
[359232957,1745854257244,-400.0,0.00022465,2]
[359232958,1745854257253,-202.2195381,0.00022465,2]
[359232959,1745854257262,-400.0,0.00022465,2]
[359232960,1745854257271,-404.48,0.00022465,2]
[359232961,1745854257281,-400.0,0.00022465,2]
[359232962,1745854257293,-400.0,0.00022465,2]
[359232963,1745854257303,-412.13878158,0.00022465,2]
[359232964,1745854257314,-688.37,0.00022465,2]
[359232965,1745854257324,-400.0,0.00022465,2]
[359232966,1745854257334,-400.0,0.00022465,2]
[359232967,1745854257343,-400.0,0.00022465,2]
[359232968,1745854257354,-401.74891531,0.00022465,2]
[359232969,1745854257363,-400.0,0.00022465,2]
[359232970,1745854257373,-307.14702956,0.00022465,2]
[359232971,1745854257382,-217.45713039,0.00022465,2]
[359232972,1745854257392,-400.0,0.00022465,2]
[359232973,1745854257402,-400.0,0.00022465,2]
[359232974,1745854257411,-400.0,0.00022465,2]
[359232975,1745854257420,-400.0,0.00022465,2]
[359232976,1745854257429,-400.0,0.00022465,2]
[359232977,1745854257439,-452.1,0.00022465,2]
[359232978,1745854257448,-400.0,0.00022465,2]
[359232979,1745854257457,-400.0,0.00022465,2]
[359232980,1745854257469,-219.33004801,0.00022465,2]
[359232981,1745854257478,-498.63975099,0.00022465,2]
[359232982,1745854257487,-515.38,0.00022465,2]
[359232983,1745854257496,-464.61,0.00022465,2]
[359232984,1745854257505,-400.0,0.00022465,2]
[359232985,1745854257514,-400.0,0.00022465,2]
[359232986,1745854257523,-400.0,0.00022465,2]
[359232987,1745854257532,-534.49,0.00022465,2]
[359232988,1745854257541,-400.0,0.00022465,2]
[359232989,1745854257551,-400.0,0.00022465,2]
[359232990,1745854257560,-400.0,0.00022465,2]
[359232991,1745854257569,-400.0,0.00022465,2]
[359232992,1745854257578,-400.0,0.00022465,2]
[359232993,1745854257588,-400.0,0.00022465,2]
[359232994,1745854257598,-400.0,0.00022465,2]
[359232995,1745854257607,-400.0,0.00022465,2]
[359232996,1745854257616,-400.76,0.00022465,2]
[359232997,1745854257626,-300.0,0.00022465,2]
[359232998,1745854257636,-1047.83,0.00022465,2]
[359232999,1745854257646,-478.26262018,0.00022465,2]
[359233000,1745854257655,-400.0,0.00022465,2]
[359233001,1745854257665,-400.0,0.00022465,2]
[359233002,1745854257674,-400.0,0.00022465,2]
[359233003,1745854257683,-400.0,0.00022465,2]
[359233004,1745854257692,-400.0,0.00022465,2]
[359233005,1745854257701,-400.0,0.00022465,2]
[359233006,1745854257710,-400.0,0.00022465,2]
[359233007,1745854257720,-400.0,0.00022465,2]
[359233008,1745854257730,-400.0,0.00022465,2]